Cogmind - Beta 14 @@@ ROGUE MODE // 2024.11.17 @ 13:31:11 Player: Cheeseinator Result: Destroyed by G-47 Trooper with Particle Gun Performance ------------- Evolutions (2) 1000 Regions Visited (4) 800 Robots Destroyed (59) 295 Value Destroyed (1155) 1155 Prototype IDs (1) 20 Alien Tech Used (0) 0 Bonus (0) 0 TOTAL SCORE: 3270 Bonus ------- None Cogmind --------- Core Integrity 0/550 Matter 231/300 Energy 100/100 System Corruption 5% Temperature Cool (9) Movement Core (200) Ox3 Location -8/Materials Parts ------- > --- POWER (1) -------- (None) > --- PROPULSION (4) --- (None) > --- UTILITY (4) ------ Medium Armor Plating > --- WEAPON (2) ------- Katana Katana > --- INVENTORY (5) ---- Katana Katana Katana Katana Katana Peak State ------------ > --- POWER ------------ Ion Engine > --- PROPULSION ------- Aluminum Leg Aluminum Leg Aluminum Leg Aluminum Leg > --- UTILITY ---------- Heat Sink Small Storage Unit Signal Interpreter Shield Generator > --- WEAPON ----------- Spread Laser Field Laser > --- INVENTORY -------- Ion Engine Light Ion Engine Aluminum Leg EM Pulse Gun Improved Medium Laser Grenade Launcher [Rating: 15] Favorites ----------- Power Ion Engine Engine Ion Engine Propulsion Aluminum Leg Leg Aluminum Leg Utility Small Storage Unit Device Heat Sink Storage Small Storage Unit Processor Signal Interpreter Protection Medium Armor Plating Weapon Spread Laser Energy Gun Spread Laser Energy Cannon EM Pulse Cannon Ballistic Gun Assault Rifle Launcher Grenade Launcher Slashing Weapon Katana Build | -11 -10 -9 -9 -8 ------- Run | Yrd Mat Mat Min Mat Slots Evolved 4 | . . 2 . 2 Power . | . . . . . Propulsion 2 | . . . . 2 Utility 2 | . . 2 . . Weapon . | . . . . . Parts Attached 37 | 7 4 4 . 22 Power 5 | 1 1 . . 3 Engine 5 | 1 1 . . 3 Core . | . . . . . Reactor . | . . . . . Propulsion 7 | 2 2 . . 3 Treads . | . . . . . Leg 7 | 2 2 . . 3 Wheel . | . . . . . Hover . | . . . . . Flight . | . . . . . Utility 9 | 1 1 2 . 5 Device 4 | . . 2 . 2 Storage 1 | 1 . . . . Processor 2 | . 1 . . 1 Hackware . | . . . . . Protection 2 | . . . . 2 Artifact . | . . . . . Weapon 16 | 3 . 2 . 11 Energy Gun 5 | 2 . 2 . 1 Energy Cannon 3 | . . . . 3 Ballistic Gun 3 | 1 . . . 2 Ballistic Cannon . | . . . . . Launcher 1 | . . . . 1 Special Weapon . | . . . . . Impact Weapon . | . . . . . Slashing Weapon 4 | . . . . 4 Piercing Weapon . | . . . . . Special Melee Weapon . | . . . . . Unidentified Prototypes 1 | . . 1 . . Parts Lost 14 | . 1 . . 13 Power 4 | . 1 . . 3 Propulsion 3 | . . . . 3 Utility 4 | . . . . 4 Weapon 3 | . . . . 3 Highest Loss Streak 5 | . 1 . . 5 To Critical Strikes . | . . . . . Average Slot Usage (%) 85 | . 86 97 100 67 Engine 10 | . 13 11 11 7 Leg 21 | . 28 22 22 18 Device 13 | . . 20 22 8 Storage 9 | . 14 11 11 6 Processor 7 | . 1 11 11 5 Protection 1 | . . . . 2 Energy Gun 15 | . 14 21 22 6 Energy Cannon 1 | . . . . 3 Ballistic Gun 2 | . 14 . . . Slashing Weapon 1 | . . . . 5 Peak Build Rating 15 | 6 7 13 13 15 Average Rating 11 | 5 6 12 13 11 On Entrance 7 | . 6 7 13 13 Naked Turns 5 | . . . . 5 Heaviest Build 23 | 12 14 19 19 23 Greatest Support 40 | 20 20 20 20 40 Greatest Overweight (x) 6 | 2 . . . 6 Average Overweight (x) . | . . . . . Largest Inventory Capacity 8 | 8 8 8 8 8 Average Capacity 7 | 7 8 8 8 7 Most Carried 7 | 4 7 7 6 7 Average Carried 4 | 2 5 5 5 4 Final Capacity 8 | 8 8 8 8 5 Final Carried 6 | 4 6 5 6 5 Class Distribution -------------------- 83% | Mutant 16% | Scavenger-Mutant Dominant Class ---------------- Mutant | -10/Materials Mutant | -9/Materials Mutant | -9/Mines Mutant | -8/Materials Resources | -11 -10 -9 -9 -8 ----------- Run | Yrd Mat Mat Min Mat Matter Collected 575 | 285 109 50 . 131 Remotely . | . . . . . Salvage Created 1886 | 101 326 399 284 776 Parts 108 | 8 14 23 19 44 Haulers Intercepted . | . . . . . Recyclers Shooed 6 | . 1 2 1 2 Parts Field Recycled . | . . . . . Retrieved Matter . | . . . . . Parts Self-Destructed . | . . . . . Prevented . | . . . . . Kills | -11 -10 -9 -9 -8 ------- Run | Yrd Mat Mat Min Mat Combat Hostiles Destroyed 27 | . 5 3 . 19 Melee 4 | . . . . 4 Guns 20 | . 5 3 . 12 Cannons 2 | . . . . 2 AOE 1 | . . . . 1 Classes Destroyed 10 | 2 3 2 . 3 Worker 11 | . 1 2 6 2 Builder 5 | . . 3 . 2 Tunneler 5 | 2 . . 2 1 Recycler 8 | 1 1 3 2 1 Mechanic 2 | . . 1 . 1 Watcher 1 | . 1 . . . Swarmer 6 | . . . . 6 Grunt 18 | . 5 3 . 10 Brawler 1 | . . . . 1 Sentry 2 | . . . . 2 Best Kill Streak 7 | 2 3 7 4 7 Combat Bots Only 7 | . 2 3 . 7 Max Kills in Single Turn 2 | 2 2 1 1 2 Gunslinging 1 | . . . . 1 Exploded 1 | . . . . 1 Melee 1 | . . . . 1 Uniques/NPCs Destroyed . | . . . . . Combat | -11 -10 -9 -9 -8 -------- Run | Yrd Mat Mat Min Mat Hostile Shots Fired 206 | . 28 18 . 160 Missed 54 | . 6 5 . 43 Damage Taken 2229 | . 285 99 . 1845 Core 622 | . 46 23 . 553 Absorbed by Shields 122 | . . 40 . 82 Regen/Repaired (Parts) 26 | . . . . 26 Core Remaining (%) 91 | 100 81 . 94 . Volleys Fired 176 | 5 29 25 45 72 Largest 2 | 2 2 2 2 2 Hottest 128 | 70 70 121 121 128 Shots Fired 319 | 10 55 47 90 117 Gun 299 | 10 55 47 90 97 Cannon 15 | . . . . 15 Launcher 5 | . . . . 5 Special . | . . . . . Kinetic 48 | 5 29 . . 14 Thermal 251 | 5 26 47 90 83 Explosive 5 | . . . . 5 Electromagnetic 15 | . . . . 15 Robot Hit Streak 13 | 2 6 7 9 13 Robot Miss Streak 9 | 2 4 4 8 9 Penetration Max . | . . . . . Secondary Targets 3 | . . . . 3 Max Gunslinging Chain 1 | . . . . 1 Shots Hit Robots 201 | 5 30 36 30 100 Core Hits 172 | 3 16 39 31 83 Critical Kills . | . . . . . Critical Parts Destroyed . | . . . . . Critical Strikes 9 | . 2 1 2 4 Burn 9 | . 2 1 2 4 Melee Attacks 20 | . . . . 20 Impact . | . . . . . Slashing 20 | . . . . 20 Piercing . | . . . . . Sneak Attacks . | . . . . . Combat Hostiles . | . . . . . Follow-up Attacks 1 | . . . . 1 Damage Inflicted 3474 | 79 400 528 446 2021 Guns 2514 | 79 397 528 437 1073 Cannons 181 | . . . . 181 Explosions 260 | . . . . 260 Melee 483 | . . . . 483 Ramming 36 | . 3 . 9 24 Kinetic 342 | 55 186 . . 101 Thermal 2172 | 24 211 528 437 972 Explosive 260 | . . . . 260 Electromagnetic 181 | . . . . 181 Impact . | . . . . . Slashing 483 | . . . . 483 Piercing . | . . . . . Highest Corruption 5 | . 4 . . 5 Average Corruption 4 | . 3 . . 5 Corruption Purged . | . . . . . Corruption Blocked . | . . . . . Effects 10 | . 1 . . 9 Message Errors 6 | . 1 . . 5 Matter Fused 1 | . . . . 1 Energy Discharges 1 | . . . . 1 Data Loss (minor) 2 | . . . . 2 Overload Shots . | . . . . . Overflow Damage 47 | . . . . 47 Projectiles . | . . . . . Explosions 33 | . . . . 33 Melee 14 | . . . . 14 Knockbacks 1 | . . . . 1 Impact 1 | . . . . 1 Kinetic . | . . . . . Secondary . | . . . . . Self-Inflicted Damage 102 | . . . . 102 Shots 4 | . . . . 4 Rammed . | . . . . . Targets Rammed 15 | . 1 . 1 13 Kicked 15 | . 1 . 1 13 Crushed . | . . . . . Highest Temperature 247 | 36 247 217 147 201 Average Temperature 58 | 16 83 72 40 59 Received Heat Transfer 986 | . 162 49 . 775 Siege Activations . | . . . . . Robots Corrupted . | . . . . . Combat Hostiles . | . . . . . Parts Fried . | . . . . . Impact Corruptions . | . . . . . Robots Melted . | . . . . . Combat Hostiles . | . . . . . Parts Melted 3 | . 2 . 1 . Heat Transferred 4597 | 74 777 947 889 1910 Parts Sabotaged . | . . . . . Parts Stolen . | . . . . . Parts Stripped . | . . . . . Power Chain Reactions . | . . . . . Alert | -11 -10 -9 -9 -8 ------- Run | Yrd Mat Mat Min Mat Peak Influence 271 | 15 164 200 83 271 Initial 78 | . 9 68 78 9 Average 101 | 3 89 104 46 176 Maximum Alert Level 1 | . . 1 . 1 Low Security (%) 86 | 100 100 88 100 62 Level 1 13 | . . 11 . 37 Level 2 . | . . . . . Level 3 . | . . . . . Level 4 . | . . . . . Level 5 . | . . . . . High Security . | . . . . . Max Security . | . . . . . Squads Dispatched 6 | . 2 1 . 3 Investigation 2 | . 1 . . 1 Extermination . | . . . . . Reinforcement 4 | . 1 1 . 2 Assault . | . . . . . Garrison . | . . . . . Intercept . | . . . . . Searches Triggered . | . . . . . Construction Impeded 1 | . . . . 1 Haulers Reinforced . | . . . . . Active Scanning Responses . | . . . . . Cargo Convoy Interrupts . | . . . . . Stealth | -11 -10 -9 -9 -8 --------- Run | Yrd Mat Mat Min Mat Distress Signals 2 | . 1 . . 1 Communications Jammed . | . . . . . Distress Signals . | . . . . . Times Spotted 46 | . 6 8 . 32 Peak Tracking Total 7 | . 2 5 . 7 Tactical Retreats 2 | . . . . 2 Traps | -11 -10 -9 -9 -8 ------- Run | Yrd Mat Mat Min Mat Traps Triggered 3 | . 3 . . . Indirectly . | . . . . . Trap Hack Attempts . | . . . . . Triggered . | . . . . . Disarmed . | . . . . . Reprogrammed . | . . . . . Reused . | . . . . . Traps Extracted . | . . . . . Installed . | . . . . . Triggered . | . . . . . Machines | -11 -10 -9 -9 -8 ---------- Run | Yrd Mat Mat Min Mat Machines Disabled 4 | . . 1 2 1 Max in Single Turn 2 | . . 1 2 1 Machines Repaired . | . . . . . Machines Dismantled . | . . . . . Machines Sabotaged . | . . . . . Overloaded Fab Kills . | . . . . . Hacking | -11 -10 -9 -9 -8 --------- Run | Yrd Mat Mat Min Mat Machines Accessed 4 | . 1 1 . 2 Terminals 2 | . 1 . . 1 Fabricators . | . . . . . Repair Stations 1 | . . . . 1 Recycling Units 1 | . . 1 . . Scanalyzers . | . . . . . Garrison Access . | . . . . . Total Hacks 10 | . 2 1 . 7 Successful 9 | . 2 1 . 6 Failed 1 | . . . . 1 Catastrophic . | . . . . . Database Lockouts . | . . . . . Manual 6 | . 2 2 . 2 Terminals 4 | . 2 . . 2 Fabricators . | . . . . . Repair Stations 5 | . . . . 5 Recycling Units 1 | . . 1 . . Scanalyzers . | . . . . . Garrison Access . | . . . . . Terminal Hacks 1 | . 1 . . . Record 1 | . 1 . . . Fabricator Hacks . | . . . . . Repair Station Hacks 4 | . . . . 4 Scan Component 3 | . . . . 3 Repair 1 | . . . . 1 Recycling Unit Hacks . | . . . . . Scanalyzer . | . . . . . Garrison Access Hacks . | . . . . . Unauthorized Hacks 4 | . 1 1 . 2 Terminals 3 | . 1 . . 2 Track 1 | . . . . 1 Botnet 2 | . 1 . . 1 Fabricators . | . . . . . Repair Stations . | . . . . . Recycling Units 1 | . . 1 . . Monitor 1 | . . 1 . . Scanalyzers . | . . . . . Garrison Access . | . . . . . Data Cores Recovered . | . . . . . Used . | . . . . . Hacking Detections 2 | . 1 . . 1 Full Trace Events 2 | . 1 . . 1 Feedback Events . | . . . . . Feedback Blocked . | . . . . . Robot Schematics Acquired . | . . . . . Robots Built . | . . . . . Authchips . | . . . . . Time . | . . . . . Total Robot Build Rating . | . . . . . Part Schematics Acquired . | . . . . . Parts Built . | . . . . . Authchips . | . . . . . Time . | . . . . . Total Part Build Rating . | . . . . . Parts Repaired 1 | . . . . 1 Time 26 | . . . . 26 Parts Recycled . | . . . . . Recycled Matter . | . . . . . Retrieved Matter . | . . . . . Retrieved Components . | . . . . . Parts Scanalyzed . | . . . . . Part Schematics Acquired . | . . . . . Parts Damaged . | . . . . . Bothacking | -11 -10 -9 -9 -8 ------------ Run | Yrd Mat Mat Min Mat Used RIF Installer . | . . . . . Robots Hacked . | . . . . . Non-combat . | . . . . . Combat . | . . . . . Robot Hacks Applied . | . . . . . Relay Couplers Released . | . . . . . Fabnet Peak Effective % . | . . . . . Robots Rewired . | . . . . . Allies Hacked . | . . . . . Hacks Repelled . | . . . . . Allies | -11 -10 -9 -9 -8 -------- Run | Yrd Mat Mat Min Mat Total Allies . | . . . . . Largest Group . | . . . . . Highest-Rated Group . | . . . . . Highest-Rated Ally . | . . . . . Total Orders . | . . . . . Ally Attacks . | . . . . . Total Damage . | . . . . . Kills . | . . . . . Allies Corrupted . | . . . . . Allies Melted . | . . . . . Intel | -11 -10 -9 -9 -8 ------- Run | Yrd Mat Mat Min Mat Robot Analysis Total . | . . . . . Derelict Logs Recovered 2 | . . . 2 . Drone Launches . | . . . . . Drone Recoveries . | . . . . . Exploration | -11 -10 -9 -9 -8 ------------- Run | Yrd Mat Mat Min Mat Turns Passed 2611 | 123 398 281 913 896 Spaces Moved 1497 | 86 242 129 638 402 Core 148 | 21 . . . 127 Treads . | . . . . . Legs 1349 | 65 242 129 638 275 Wheels . | . . . . . Hover . | . . . . . Flight . | . . . . . Fastest Speed 50 | 50 120 120 120 50 Average Speed 124 | 109 120 120 120 137 Slowest Speed 350 | 150 120 120 120 350 Overloaded Moves . | . . . . . Propulsion Burnouts . | . . . . . Robots Hopped . | . . . . . Cave-ins Triggered 1 | . . . . 1 Exploration Rate (%) 33 | 6 31 12 93 24 Regions Visited 4 Branch Regions 1 Pre-discovered Areas 1 | . . . 1 . Known Exits Taken 3 | . 1 1 1 . Unknown Exits Taken 1 | 1 . . . . Scrap Searched 2 | . . . 2 . Spaces Dug . | . . . . . Terrain Destroyed 39 | . . . 10 29 Melee . | . . . . . Projectile . | . . . . . AOE 39 | . . . 10 29 Terrain Rammed . | . . . . . Walls Destroyed . | . . . . . Machines Disabled . | . . . . . Actions | -11 -10 -9 -9 -8 --------- Run | Yrd Mat Mat Min Mat Total 1899 | 101 295 208 695 600 Wait 124 | . 11 48 11 54 Move 1493 | 85 241 128 637 402 Hop . | . . . . . Pick Up 15 | 4 5 . 1 5 Fast Attach 26 | 6 1 3 . 16 Attach 6 | . 1 1 . 4 Detach 5 | . . 1 . 4 Swap 5 | 1 2 . . 2 Drop 16 | . 4 2 . 10 Fire 176 | 5 29 25 45 72 Melee 18 | . . . . 18 Ram . | . . . . . Kick 15 | . 1 . 1 13 Crush . | . . . . . Escape Stasis . | . . . . . Rewire . | . . . . . Trap . | . . . . . Miscellaneous . | . . . . . Route ------- -11/Scrapyard -10/Materials -9/Materials -9/Mines (discovered 2 exits: *Mat x2) -8/Materials History --------- Turn | Location | Event 23 | -11/Scrapyard | Discovered new exit (range 16) 124 | -11/Scrapyard | Entered Materials 311 | -10/Materials | Build established: Mutant 442 | -10/Materials | Discovered new exit (range 5) 520 | -10/Materials | Identified exit to Materials 522 | -10/Materials | Entered another Materials area 522 | -9/Materials | Evolved 2 slots: Utility x2 797 | -9/Materials | Discovered new exit (range 6) 802 | -9/Materials | Identified exit to Mines 803 | -9/Materials | Entered Mines 879 | -9/Mines | Learned Materials garrison access intel 902 | -9/Mines | Discovered new exit (range 5) 906 | -9/Mines | Identified exit to Materials 1021 | -9/Mines | Learned location of Storage (-7) 1099 | -9/Mines | Discovered exit to Materials (range 9) 1716 | -9/Mines | Entered Materials 1716 | -8/Materials | Evolved 2 slots: Propulsion x2 1717 | -8/Materials | Loaded intel: 1 garrison access location 1814 | -8/Materials | Destroyed 7 combat bots 2091 | -8/Materials | Build established: Scavenger-Mutant 2136 | -8/Materials | Repaired Heat Sink 2208 | -8/Materials | Crushed by falling debris 2242 | -8/Materials | Lost 5 parts (1p1n2u1w) 2291 | -8/Materials | Core integrity fell below 50% 2324 | -8/Materials | Released all parts (4) 2349 | -8/Materials | Lost 5 parts (1p2n2w) 2357 | -8/Materials | Core integrity fell below 20% 2612 | -8/Materials | Destroyed by G-47 Trooper with Particle Gun Last Messages --------------- 02366_ Destroyed Lgt. Nuclear Core. 02368_ G-47 Trooper destroyed. 02373_ Acquired Katana. 02380_ Dropped Katana. 02382_ Acquired Katana. 02389_ Dropped EM Pulse Gun. 02390_ Dropped Imp. Medium Laser. 02396_ Acquired Katana. 02414_ JFD|L## 2 02468_ Acquired Med. Armor Plating. 02483_ System corrupted: Energy discharge (-46). 02511_ G05D4L AZ2B6ANQEXXO0QC 02555_ System corrupted: Component data lost. 02563_ ALERT: Hostiles spotted, dispatching reinforcements to Terminal M001. 02584_ 2MY&OPW